bitfinex-derivatives/quotes_BTCF0:USTF0_20250630
["timestamp","ask_amount","ask_price","bid_price","bid_amount"]
[1751299647130,2.0815091,107570.0,107560.0,0.38134267]
[1751299647336,2.39811174,107570.0,107560.0,0.32414267]
[1751299647637,2.45581174,107570.0,107560.0,0.32414267]
[1751299649034,1.73445174,107570.0,107560.0,0.32414267]
[1751299649236,2.45569174,107570.0,107560.0,0.32414267]
[1751299650234,2.50849174,107570.0,107560.0,0.32414267]
[1751299652237,2.50849174,107570.0,107560.0,0.66414267]
[1751299652426,2.86929174,107570.0,107560.0,0.66414267]
[1751299652632,2.86929174,107570.0,107560.0,0.32414267]
[1751299652833,2.86929174,107570.0,107560.0,0.65414267]
[1751299653031,2.81649174,107570.0,107560.0,0.65414267]
[1751299653742,1.7209491,107570.0,107560.0,0.65414267]
[1751299653943,2.4420691,107570.0,107560.0,0.65414267]
[1751299655342,2.4420691,107570.0,107560.0,0.69080812]
[1751299657742,2.4420691,107570.0,107560.0,0.74080812]
[1751299658745,2.75867174,107570.0,107560.0,0.74080812]
[1751299661148,2.4420691,107570.0,107560.0,0.74080812]
[1751299662746,2.4420691,107570.0,107560.0,0.74082597]
[1751299666044,2.4420691,107570.0,107560.0,0.72683157]
[1751299666346,2.4420691,107570.0,107560.0,0.7407204]
[1751299666749,2.4964691,107570.0,107560.0,0.7407204]
[1751299667848,1.5541891,107570.0,107560.0,1.05732304]
[1751299668048,1.4993491,107570.0,107560.0,1.09837607]
[1751299668239,2.0804291,107570.0,107560.0,1.09837607]
[1751299668956,2.0804291,107570.0,107560.0,1.05728575]
[1751299669147,1.3601491,107570.0,107560.0,0.74068311]
[1751299669349,2.0803891,107570.0,107560.0,0.74068311]
[1751299669854,1.75531,107570.0,107560.0,0.74068311]
[1751299670054,1.75531,107570.0,107560.0,0.78177343]
[1751299670653,1.9411891,107570.0,107560.0,0.78177343]
[1751299671153,1.17427,107570.0,107560.0,1.11520763]
[1751299671456,1.75527,107570.0,107560.0,1.06026577]
[1751299671855,1.17427,107570.0,107560.0,1.06026577]
[1751299672055,1.17427,107570.0,107560.0,1.11520763]
[1751299672448,0.3608,107570.0,107560.0,1.11520763]
[1751299673153,1.4164004,107590.0,107580.0,0.1858618]
[1751299673359,0.7893166,107590.0,107580.0,0.5658618]
[1751299673543,0.6036445,107590.0,107580.0,0.94477344]
[1751299673749,1.13788,107590.0,107580.0,1.01292085]
[1751299674057,1.3237245,107590.0,107580.0,1.01292085]
[1751299674255,2.1371945,107590.0,107580.0,0.99857344]
[1751299676555,1.59055,107590.0,107580.0,0.99857344]
[1751299676761,0.87047,107590.0,107580.0,0.99857344]
[1751299676956,1.39427,107590.0,107580.0,1.35937344]
[1751299677563,0.81347,107590.0,107580.0,1.35937344]
[1751299677955,0.81347,107590.0,107580.0,1.39609314]
[1751299678660,0.9993145,107590.0,107580.0,1.39609314]
[1751299678859,0.81347,107590.0,107580.0,1.69269314]
[1751299679556,0.9993145,107590.0,107580.0,1.69269314]
[1751299680754,0.81347,107590.0,107580.0,1.69269314]
[1751299681660,0.9993145,107590.0,107580.0,1.69269314]
[1751299682755,0.9993145,107590.0,107580.0,2.27325314]
[1751299682956,0.9993145,107590.0,107580.0,1.3669815]
[1751299683157,0.9993145,107590.0,107580.0,1.0061815]
[1751299683367,1.0559145,107590.0,107580.0,1.0061815]
[1751299683568,1.0559145,107590.0,107580.0,1.32278414]
[1751299684664,0.87007,107590.0,107580.0,1.32278414]
[1751299685368,1.0559145,107590.0,107580.0,1.32278414]
[1751299685766,0.87007,107590.0,107580.0,1.32278414]
[1751299686070,1.0559145,107590.0,107580.0,1.32278414]
[1751299686463,0.87007,107590.0,107580.0,1.64686444]
[1751299686671,0.81347,107590.0,107580.0,1.68358414]
[1751299686870,0.81347,107590.0,107580.0,1.86948014]
[1751299687170,0.81347,107590.0,107580.0,1.924422]
[1751299688268,0.81347,107590.0,107580.0,1.99950969]
[1751299688475,1.2941821,107610.0,107600.0,0.1858273]
[1751299688666,1.2941821,107610.0,107600.0,0.85242994]
[1751299689166,0.528,107610.0,107600.0,0.85242994]
[1751299689366,1.28567,107610.0,107600.0,0.85242994]
[1751299689566,1.86603,107610.0,107600.0,0.90822994]
[1751299689762,1.86603,107610.0,107600.0,0.96302994]
[1751299690368,1.28567,107610.0,107600.0,1.25962994]
[1751299690573,0.81347,107610.0,107600.0,1.63692449]
[1751299690865,0.1146,107620.0,107610.0,0.18581]
[1751299691065,0.1146,107620.0,107610.0,1.90924641]
[1751299691476,0.058,107620.0,107610.0,2.20584641]
[1751299691774,0.058,107620.0,107610.0,2.26354641]
[1751299694273,0.4748,107630.0,107620.0,0.1857927]
[1751299694476,1.10846,107630.0,107620.0,0.83239534]
[1751299695071,1.10842,107630.0,107620.0,0.83239534]
[1751299695570,2.1076655,107630.0,107620.0,0.83239534]
[1751299695766,0.98097,107630.0,107620.0,1.14601599]
[1751299695971,0.98097,107630.0,107620.0,1.50681599]
[1751299695972,0.86797,107630.0,107620.0,1.50681599]
[1751299696175,0.86797,107630.0,107620.0,1.61271599]
[1751299696581,0.81447,107630.0,107620.0,1.61271599]
[1751299698581,0.86687,107630.0,107620.0,1.61271599]
[1751299699476,1.0526455,107630.0,107620.0,0.93531335]
[1751299699680,1.1106455,107630.0,107620.0,1.25191599]
[1751299700176,0.92487,107630.0,107620.0,1.25191599]
[1751299701081,1.1106455,107630.0,107620.0,1.25191599]
[1751299701383,0.92487,107630.0,107620.0,1.25191599]
[1751299701687,1.1106455,107630.0,107620.0,1.25191599]
[1751299702378,1.78804814,107630.0,107620.0,0.82941335]
[1751299702878,1.88804814,107630.0,107620.0,0.82941335]
[1751299703281,1.78804814,107630.0,107620.0,0.82941335]
[1751299704182,1.4714455,107630.0,107620.0,0.82941335]
[1751299705077,1.78804814,107630.0,107620.0,0.82941335]
[1751299705284,1.88804814,107630.0,107620.0,0.8123927]
[1751299705483,1.88804814,107630.0,107620.0,0.5157927]
[1751299706279,1.78804814,107630.0,107620.0,0.5157927]
[1751299708186,1.88804814,107630.0,107620.0,0.5157927]
[1751299708484,1.5714455,107630.0,107620.0,0.5157927]
[1751299708683,1.88804814,107630.0,107620.0,0.5157927]
[1751299708879,1.4714455,107630.0,107620.0,0.5157927]
[1751299709081,1.78804814,107630.0,107620.0,0.5157927]
[1751299709680,1.4714455,107630.0,107620.0,0.5157927]
[1751299711385,1.4714455,107630.0,107620.0,0.83239534]
[1751299712486,2.0510855,107630.0,107620.0,0.83239534]
[1751299712881,1.4714455,107630.0,107620.0,0.83239534]
[1751299713078,1.9930455,107630.0,107620.0,0.83239534]
[1751299713274,1.9930455,107630.0,107620.0,0.88929534]
[1751299713484,1.22767,107630.0,107620.0,0.88929534]
[1751299713682,1.39407,107630.0,107620.0,0.94509534]
[1751299713880,1.39407,107630.0,107620.0,1.30589534]
[1751299714287,1.5798455,107630.0,107620.0,1.30589534]
[1751299714590,1.5798455,107630.0,107620.0,0.94509534]
[1751299715484,1.0002455,107630.0,107620.0,0.94509534]
[1751299715883,1.0002455,107630.0,107620.0,0.6284927]
[1751299716182,0.81447,107630.0,107620.0,0.94509534]
[1751299716781,0.81447,107630.0,107620.0,1.88541534]
[1751299717082,0.81447,107630.0,107620.0,1.92213504]
[1751299717289,0.81447,107630.0,107620.0,2.21873504]
[1751299717488,0.001,107630.0,107620.0,2.21873504]
[1751299718789,0.001,107630.0,107620.0,2.35701504]
[1751299718994,0.001,107630.0,107620.0,2.4119569]
[1751299722389,0.001,107630.0,107620.0,2.61489871]
[1751299722586,0.001,107630.0,107620.0,2.57817901]
[1751299722788,0.9004474,107660.0,107650.0,0.1857409]
[1751299722983,0.85215587,107660.0,107650.0,0.81333646]
[1751299723289,0.8530037,107660.0,107650.0,0.86853646]
[1751299723487,1.6664737,107660.0,107650.0,0.86853646]
[1751299723694,1.5281937,107660.0,107650.0,0.86853646]
[1751299724084,1.4717937,107660.0,107650.0,0.86853646]
[1751299724280,1.28607,107660.0,107650.0,0.92393646]
[1751299724479,1.4717937,107660.0,107650.0,0.92393646]
[1751299725785,1.4717937,107660.0,107650.0,0.93301733]
[1751299726495,1.28607,107660.0,107650.0,0.93301733]
[1751299727095,1.4717937,107660.0,107650.0,0.93301733]
[1751299727586,0.87067,107660.0,107650.0,0.93301733]
[1751299727986,1.0563937,107660.0,107650.0,0.98611733]
[1751299729193,1.0563937,107660.0,107650.0,1.28271733]
[1751299729796,1.1095937,107660.0,107650.0,0.91301469]
[1751299730098,1.1095937,107660.0,107650.0,1.22961733]
[1751299730995,1.1095937,107660.0,107650.0,1.22053646]
[1751299732399,1.1095937,107660.0,107650.0,0.84853382]
[1751299732603,1.1652937,107660.0,107650.0,1.10993646]
[1751299732793,1.1652937,107660.0,107650.0,0.79333382]
[1751299734205,1.1652937,107660.0,107650.0,1.10993646]
[1751299734502,1.1652937,107660.0,107650.0,1.11932212]
[1751299734802,1.1652937,107660.0,107650.0,1.16713646]
[1751299739398,1.1652937,107660.0,107650.0,1.10993646]
[1751299739603,1.84269634,107660.0,107650.0,1.37217382]
[1751299739804,1.5260937,107660.0,107650.0,1.37217382]
[1751299740398,1.84269634,107660.0,107650.0,0.79333382]
[1751299740797,1.84269634,107660.0,107650.0,0.99089482]
[1751299741007,1.5260937,107660.0,107650.0,1.01089746]
[1751299741203,1.7440937,107660.0,107650.0,1.01089746]
[1751299741403,2.1048937,107660.0,107650.0,0.69429482]
[1751299743003,1.34037,107660.0,107650.0,0.69429482]
[1751299743197,0.81347,107660.0,107650.0,1.37169746]
[1751299743396,0.81347,107660.0,107650.0,1.77979746]
[1751299743606,0.81347,107660.0,107650.0,1.83399746]
[1751299744196,0.81347,107660.0,107650.0,1.87060282]
[1751299744405,0.1111,107670.0,107660.0,0.1857237]
[1751299744605,0.1111,107670.0,107660.0,1.55254634]
[1751299745093,0.1111,107670.0,107660.0,1.5530428]
[1751299746500,0.0555,107670.0,107660.0,1.5530428]
[1751299746696,0.60644,107680.0,107670.0,0.1857064]
[1751299746897,0.24874,107680.0,107670.0,1.22931361]
[1751299747099,0.6076169,107690.0,107680.0,0.1856892]
[1751299747405,0.7181169,107690.0,107680.0,0.93609184]
[1751299747600,0.7181169,107690.0,107680.0,0.6194892]
[1751299747905,0.7181169,107690.0,107680.0,0.61998566]
[1751299748107,0.7181169,107690.0,107680.0,1.19858566]
[1751299748304,0.7181169,107690.0,107680.0,1.5151883]
[1751299748504,1.5315869,107690.0,107680.0,1.5151883]
[1751299748706,1.5315869,107690.0,107680.0,1.19858566]
[1751299748912,1.34591,107690.0,107680.0,1.19858566]
[1751299749207,1.531582,107690.0,107680.0,1.5151883]
[1751299750001,1.34591,107690.0,107680.0,1.5151883]
[1751299750508,0.93201,107690.0,107680.0,0.9365883]
[1751299750704,0.93201,107690.0,107680.0,1.5694483]
[1751299751399,0.93201,107690.0,107680.0,1.25284566]
[1751299751708,1.117682,107690.0,107680.0,1.5694483]
[1751299751902,1.117682,107690.0,107680.0,1.25284566]
[1751299752103,1.117682,107690.0,107680.0,1.5694483]
[1751299753909,1.174682,107690.0,107680.0,1.5694483]
[1751299754303,0.98901,107690.0,107680.0,1.5694483]
[1751299754701,0.93201,107690.0,107680.0,1.5694483]
[1751299755007,0.87761,107690.0,107680.0,1.9302483]
[1751299755204,0.82151,107690.0,107680.0,1.9302483]
[1751299755804,0.82151,107690.0,107680.0,2.2268483]
[1751299756006,0.82151,107690.0,107680.0,2.22734476]
[1751299756209,0.00804,107690.0,107680.0,2.22734476]
[1751299757019,0.00804,107690.0,107680.0,2.26395012]
[1751299757403,0.00804,107690.0,107680.0,2.22734476]
[1751299757807,0.00804,107690.0,107680.0,1.91074212]
[1751299758009,0.193712,107690.0,107680.0,2.22734476]
[1751299758214,0.248912,107690.0,107680.0,1.86654476]
[1751299759019,0.248912,107690.0,107680.0,0.97138212]
[1751299759222,0.248912,107690.0,107680.0,0.86328212]
[1751299759421,0.306112,107690.0,107680.0,0.86328212]
[1751299759814,0.306112,107690.0,107680.0,1.17988476]
[1751299760323,1.119582,107690.0,107680.0,1.17988476]
[1751299760517,1.119582,107690.0,107680.0,1.23238476]
[1751299760718,1.119582,107690.0,107680.0,0.91578212]
[1751299760920,1.119582,107690.0,107680.0,1.23238476]
[1751299762026,0.87671,107690.0,107680.0,1.23238476]
[1751299762218,0.87671,107690.0,107680.0,1.28708476]
[1751299762525,1.0623819,107690.0,107680.0,1.28708476]
[1751299762828,0.87671,107690.0,107680.0,1.28708476]
[1751299763526,1.0623819,107690.0,107680.0,1.28708476]
[1751299764328,0.87671,107690.0,107680.0,1.28708476]
[1751299766829,1.0623819,107690.0,107680.0,1.28708476]
[1751299767131,0.87671,107690.0,107680.0,1.28708476]
[1751299767731,1.0623819,107690.0,107680.0,1.28708476]
[1751299768430,1.1155819,107690.0,107680.0,1.23238476]
[1751299768823,1.1155819,107690.0,107680.0,1.17988476]
[1751299769532,0.92991,107690.0,107680.0,1.17988476]
[1751299770034,0.92991,107690.0,107680.0,1.23478476]
[1751299770331,0.92991,107690.0,107680.0,1.11574312]
[1751299770532,0.92991,107690.0,107680.0,1.43234576]
[1751299771134,0.82151,107690.0,107680.0,1.79314576]
[1751299771436,0.82151,107690.0,107680.0,1.88385112]
[1751299772329,0.82151,107690.0,107680.0,2.20045376]
[1751299772538,0.00804,107690.0,107680.0,2.25539562]
[1751299773732,0.3618,107720.0,107710.0,0.1856375]
[1751299773934,0.001,107720.0,107710.0,1.82152014]
[1751299774131,0.001,107720.0,107710.0,1.93082014]
[1751299774326,0.001,107720.0,107710.0,1.9313166]
[1751299774531,0.001,107720.0,107710.0,1.9312366]
[1751299774936,0.5214,107740.0,107730.0,0.185603]
[1751299775237,0.4684,107740.0,107730.0,1.46060564]
[1751299775439,0.4684,107740.0,107730.0,1.5160021]
[1751299775630,0.4684,107740.0,107730.0,1.5704021]
[1751299776237,0.6539858,107740.0,107730.0,1.14449946]
[1751299776430,0.7088858,107740.0,107730.0,0.56609946]
[1751299777738,0.7088858,107740.0,107730.0,0.6415377]
[1751299777941,1.5223558,107740.0,107730.0,0.6415377]
[1751299778435,1.33677,107740.0,107730.0,0.65071042]
[1751299778630,1.33677,107740.0,107730.0,0.96731306]
[1751299778835,1.28187,107740.0,107730.0,0.96731306]
[1751299779031,1.28187,107740.0,107730.0,1.01961306]
[1751299779432,0.4684,107740.0,107730.0,1.01961306]
[1751299779742,0.4684,107740.0,107730.0,1.03393052]
[1751299780234,0.1076,107740.0,107730.0,1.03393052]
[1751299780435,0.4151,107750.0,107740.0,0.1855858]
[1751299780634,0.7108686,107750.0,107740.0,1.0956658]
[1751299780940,0.3500686,107750.0,107740.0,1.4127649]
[1751299781133,1.1635386,107750.0,107740.0,1.4127649]
[1751299781335,0.97797,107750.0,107740.0,1.4127649]
[1751299781541,1.1635386,107750.0,107740.0,1.4127649]
[1751299782135,1.5243386,107750.0,107740.0,1.09616226]
[1751299783142,1.5243386,107750.0,107740.0,1.4127649]
[1751299783338,1.5243386,107750.0,107740.0,1.42727185]
[1751299783742,1.33877,107750.0,107740.0,1.42727185]
[1751299783942,1.33877,107750.0,107740.0,1.11066921]
[1751299784144,1.33877,107750.0,107740.0,1.42727185]
[1751299784643,1.5243385,107750.0,107740.0,1.42727185]
[1751299785237,1.5103385,107750.0,107740.0,1.42727185]
[1751299786242,1.5103385,107750.0,107740.0,1.09616226]
[1751299786932,1.4700385,107750.0,107740.0,1.1106556]
[1751299787136,1.28447,107750.0,107740.0,1.42725824]
[1751299787433,1.4700386,107750.0,107740.0,1.48145824]
[1751299789248,1.4700386,107750.0,107740.0,1.46746136]
[1751299791342,1.4700386,107750.0,107740.0,1.76406136]
[1751299791744,1.4700386,107750.0,107740.0,1.44745872]
[1751299791938,1.4700386,107750.0,107740.0,1.76406136]
[1751299792343,1.78664124,107750.0,107740.0,0.81317872]
[1751299792549,1.84174124,107750.0,107740.0,1.39393872]
[1751299793251,1.5251386,107750.0,107740.0,1.39393872]
[1751299793646,1.5251386,107750.0,107740.0,0.81317872]
[1751299793948,1.5251386,107750.0,107740.0,1.39381872]
[1751299794844,1.33957,107750.0,107740.0,1.71042136]
[1751299795147,1.5251386,107750.0,107740.0,1.71042136]
[1751299795349,1.5251386,107750.0,107740.0,1.90798236]
[1751299796851,0.92367,107750.0,107740.0,1.90798236]
[1751299797047,0.92367,107750.0,107740.0,2.02038236]
[1751299797252,0.86947,107750.0,107740.0,2.43528236]
[1751299797644,0.046,107750.0,107740.0,2.43528236]
[1751299797845,0.24852,107760.0,107750.0,0.1855686]
[1751299798040,0.24852,107760.0,107750.0,0.84217124]
[1751299798547,0.24852,107760.0,107750.0,0.8426677]
[1751299799253,1.06199,107760.0,107750.0,0.85705656]
[1751299799751,1.2475413,107760.0,107750.0,0.85705656]
[1751299799949,1.6083413,107760.0,107750.0,0.52606506]
[1751299800551,1.42279,107760.0,107750.0,0.52606506]
[1751299800750,1.47889,107760.0,107750.0,0.52606506]
[1751299800950,1.11809,107760.0,107750.0,0.52606506]
[1751299801549,1.3036413,107760.0,107750.0,0.52606506]
[1751299802050,1.3036413,107760.0,107750.0,0.52606506]
[1751299802246,1.3036413,107760.0,107750.0,0.54039642]
[1751299802447,1.11809,107760.0,107750.0,0.52606506]
[1751299802648,1.3036413,107760.0,107750.0,0.8426677]
[1751299802954,1.3036413,107760.0,107750.0,0.52606506]
[1751299803144,1.3036413,107760.0,107750.0,0.85700856]
[1751299803349,1.11809,107760.0,107750.0,0.85700856]
[1751299803548,1.11809,107760.0,107750.0,0.54040592]
[1751299803751,1.11809,107760.0,107750.0,0.85700856]
[1751299804060,1.11809,107760.0,107750.0,0.91070856]
[1751299804061,1.06149,107760.0,107750.0,0.91070856]
[1751299804850,0.92357,107760.0,107750.0,0.91070856]
[1751299805050,0.81347,107760.0,107750.0,0.91302917]
[1751299805252,0.81347,107760.0,107750.0,1.34507663]
[1751299805554,0.81347,107760.0,107750.0,1.54263763]
[1751299805949,0.1092,107770.0,107760.0,0.1855513]
[1751299806157,0.1092,107770.0,107760.0,1.57892776]
[1751299806458,0.1092,107770.0,107760.0,1.8955304]
[1751299806658,0.1092,107770.0,107760.0,1.63232776]
[1751299806856,0.1092,107770.0,107760.0,1.9489304]
[1751299807053,0.92267,107770.0,107760.0,1.96328031]
[1751299807660,1.1082041,107770.0,107760.0,1.59327767]
[1751299807856,1.42480674,107770.0,107760.0,1.12223767]
[1751299808057,1.5206041,107770.0,107760.0,0.54039767]
[1751299808358,1.83720674,107770.0,107760.0,0.54039767]
[1751299809662,1.83720674,107770.0,107760.0,0.30039767]
[1751299810257,1.5206041,107770.0,107760.0,0.30039767]
[1751299810458,1.83720674,107770.0,107760.0,0.30039767]
[1751299811562,1.97704674,107770.0,107760.0,0.30039767]
[1751299813458,1.97704674,107770.0,107760.0,0.30023821]
[1751299813659,1.5206041,107770.0,107760.0,0.34604776]
[1751299813864,2.1028441,107770.0,107760.0,0.53023831]
[1751299814366,2.41944674,107770.0,107760.0,0.53023831]
[1751299814568,2.55960674,107770.0,107760.0,0.53023831]
[1751299815262,2.2430041,107770.0,107760.0,0.53023831]
[1751299815463,1.83720674,107770.0,107760.0,0.53023831]
[1751299815763,2.55956674,107770.0,107760.0,0.53023831]
[1751299817767,2.55956674,107770.0,107760.0,0.51604776]
[1751299820271,2.55956674,107770.0,107760.0,0.30604776]
[1751299820968,2.65956674,107770.0,107760.0,0.30604776]
[1751299821765,2.3429641,107770.0,107760.0,0.30604776]
[1751299821964,2.55956674,107770.0,107760.0,0.27604776]
[1751299822160,2.2429641,107770.0,107760.0,0.54654422]
[1751299822362,2.55956674,107770.0,107760.0,0.18654422]
[1751299822562,2.55956674,107770.0,107760.0,0.52654422]
[1751299822771,2.55956674,107770.0,107760.0,0.27654422]
[1751299823767,2.55908674,107770.0,107760.0,0.27654422]
[1751299823969,2.55908674,107770.0,107760.0,0.50654422]
[1751299824169,2.00527,107770.0,107760.0,0.50654422]
[1751299824358,1.28347,107770.0,107760.0,0.61804422]
[1751299824562,1.28347,107770.0,107760.0,1.29544686]
[1751299824563,0.81347,107770.0,107760.0,1.29544686]
[1751299824763,0.81347,107770.0,107760.0,1.35244686]
[1751299824958,0.81347,107770.0,107760.0,2.24552962]
[1751299825173,0.81347,107770.0,107760.0,2.5986751]
[1751299825373,0.81347,107770.0,107760.0,2.28207246]
[1751299825572,0.6921105,107770.0,107760.0,2.5986751]
[1751299825770,0.1155943,107770.0,107760.0,2.5986751]
[1751299825967,0.001,107780.0,107760.0,2.5986751]
[1751299825968,0.001,107780.0,107770.0,0.1855341]
[1751299826272,0.001,107780.0,107770.0,1.5890332]
[1751299827174,0.001,107780.0,107770.0,1.27243056]
[1751299827375,0.001,107780.0,107770.0,1.5890332]
[1751299828068,0.001,107780.0,107770.0,1.59815557]
[1751299829470,0.001,107780.0,107770.0,1.30155557]
[1751299829672,0.001,107780.0,107770.0,1.3183339]
[1751299830178,1e-07,107780.0,107770.0,1.3183339]
[1751299830568,1e-07,107780.0,107770.0,1.49471674]
[1751299831269,1e-07,107780.0,107770.0,1.93028474]
[1751299834277,1e-07,107780.0,107770.0,1.9852266]
[1751299834676,0.0538,107810.0,107800.0,0.1854825]
[1751299834869,0.0538,107810.0,107800.0,1.76580514]
[1751299835062,0.0538,107810.0,107800.0,1.87190514]
[1751299835281,0.0538,107810.0,107800.0,1.8724016]
[1751299835475,0.001,107810.0,107800.0,1.8724016]
[1751299835866,0.001,107810.0,107800.0,1.61339896]
[1751299836067,0.001,107810.0,107800.0,2.2266016]
[1751299836262,1e-07,107810.0,107800.0,2.2266016]
[1751299839173,1e-07,107810.0,107800.0,2.29930286]
[1751299839773,1e-07,107810.0,107800.0,2.24234286]
[1751299840680,1e-07,107810.0,107800.0,1.34218022]
[1751299840880,1e-07,107810.0,107800.0,2.24234286]
[1751299841284,1e-07,107810.0,107800.0,2.2788857]
[1751299842279,1e-07,107810.0,107800.0,2.24234286]
[1751299842785,1e-07,107810.0,107800.0,2.24254286]
[1751299846288,1e-07,107810.0,107800.0,1.92594022]
[1751299846582,1e-07,107810.0,107800.0,2.24254286]
[1751299847689,0.0539001,107810.0,107800.0,2.24254286]
[1751299848692,0.0539001,107810.0,107800.0,1.60568286]
[1751299848893,0.1088001,107810.0,107800.0,2.13660286]
[1751299849994,0.1088001,107810.0,107800.0,1.82000022]
[1751299850183,0.1088001,107810.0,107800.0,2.13660286]
[1751299850385,0.1088001,107810.0,107800.0,2.01756122]
[1751299850690,0.1088001,107810.0,107800.0,2.33416386]
[1751299852688,0.1088001,107810.0,107800.0,1.75024386]
[1751299852994,0.1088001,107810.0,107800.0,2.33384386]
[1751299854881,0.2942654,107810.0,107800.0,1.43364122]
[1751299855085,0.1088001,107810.0,107800.0,1.65628122]
[1751299855282,0.1088001,107810.0,107800.0,1.38994032]
[1751299855493,0.0539001,107810.0,107800.0,1.38994032]
[1751299855698,0.0539001,107810.0,107800.0,1.44654032]
[1751299858408,0.0539001,107810.0,107800.0,1.80734032]
[1751299859209,0.0539001,107810.0,107800.0,1.82431584]
[1751299859508,1e-07,107810.0,107800.0,1.82431584]
[1751299859709,1e-07,107810.0,107800.0,1.87961584]
[1751299860204,0.0518001,107810.0,107800.0,1.87961584]
[1751299861303,0.0518001,107810.0,107800.0,1.5630132]
[1751299861506,0.0518001,107810.0,107800.0,1.87961584]
[1751299862511,1e-07,107810.0,107800.0,1.87961584]
[1751299862710,1e-07,107810.0,107800.0,1.93148716]
[1751299863610,1e-07,107810.0,107800.0,2.2480898]
[1751299864509,1e-07,107810.0,107800.0,2.3887298]
[1751299864812,0.1696,107830.0,107820.0,0.1854481]
[1751299865109,0.1696,107830.0,107820.0,1.40501074]
[1751299865302,0.1696,107830.0,107820.0,1.75791074]
[1751299865506,0.1696,107830.0,107820.0,1.7584072]
[1751299865910,0.3550309,107830.0,107820.0,1.7584072]
[1751299866111,0.3550309,107830.0,107820.0,1.44180456]
[1751299866307,0.3550309,107830.0,107820.0,0.80254456]
[1751299866514,1.03243354,107830.0,107820.0,1.10554456]
[1751299866712,1.03243354,107830.0,107820.0,0.52254456]
[1751299867817,0.7158309,107830.0,107820.0,0.52254456]
[1751299868017,1.03243354,107830.0,107820.0,0.52254456]
[1751299868212,1.03243354,107830.0,107820.0,0.48254456]
[1751299868420,1.03243354,107830.0,107820.0,0.52254456]
[1751299868716,1.03243354,107830.0,107820.0,0.51254456]
[1751299868917,0.7158309,107830.0,107820.0,0.80254456]
[1751299869108,0.7158309,107830.0,107820.0,0.48254456]
[1751299869310,0.7158309,107830.0,107820.0,0.83254456]
[1751299871220,0.7158309,107830.0,107820.0,0.21594456]
[1751299871518,0.7158309,107830.0,107820.0,0.56594456]
[1751299874221,0.7158309,107830.0,107820.0,0.62114456]
[1751299875514,0.7158309,107830.0,107820.0,0.56594456]
[1751299875721,1.03243354,107830.0,107820.0,0.24594456]
[1751299876418,1.03243354,107830.0,107820.0,0.06049646]
[1751299876419,0.7158309,107830.0,107820.0,0.06049646]
[1751299876615,1.29243354,107830.0,107820.0,0.00049646]
[1751299877013,1.39243354,107830.0,107820.0,0.00049646]
[1751299877723,1.31792155,107830.0,107820.0,0.00049646]
[1751299877917,0.1854482,107820.0,107810.0,0.3245422]
[1751299878110,1.69489084,107820.0,107810.0,0.4645422]
[1751299878314,1.69489084,107820.0,107810.0,0.5981766]
[1751299878514,1.88039484,107820.0,107810.0,0.5981766]
[1751299880222,1.88039484,107820.0,107810.0,0.3081766]
[1751299880618,1.98039484,107820.0,107810.0,0.2154654]
[1751299880923,1.98039484,107820.0,107800.0,0.52263606]
[1751299880924,0.1854654,107810.0,107800.0,0.52263606]
[1751299881220,1.02966804,107810.0,107800.0,0.64263606]
[1751299881823,0.7130654,107810.0,107800.0,0.64263606]
[1751299882722,1.02966804,107810.0,107800.0,0.64263606]
[1751299882922,0.7130654,107810.0,107800.0,0.64263606]
[1751299883121,1.02966804,107810.0,107800.0,0.64263606]
[1751299883924,1.02966804,107810.0,107800.0,0.59626676]
[1751299885522,1.02966804,107810.0,107800.0,0.39870576]
[1751299887624,0.7130654,107810.0,107800.0,0.61870576]
[1751299888926,0.7130654,107810.0,107800.0,0.27870576]
[1751299889126,0.7130654,107810.0,107800.0,0.62870576]
[1751299889826,0.7130654,107810.0,107800.0,0.36870576]
[1751299890028,0.7130654,107810.0,107800.0,0.27870576]
[1751299890330,0.7130654,107810.0,107800.0,0.36870576]
[1751299890521,0.7130654,107810.0,107800.0,0.62870576]
[1751299891128,0.7130654,107810.0,107800.0,0.34870576]
[1751299891320,0.7130654,107810.0,107800.0,0.62870576]
[1751299893832,0.7130654,107810.0,107800.0,0.64870576]
[1751299894331,0.7130654,107810.0,107800.0,0.70560576]
[1751299896233,0.7130654,107810.0,107800.0,0.66560576]
[1751299897334,0.7130654,107810.0,107800.0,0.33560576]
[1751299897836,0.7130654,107810.0,107800.0,0.41560576]
[1751299898026,1.02966804,107810.0,107800.0,0.41560576]
[1751299898227,0.7130654,107810.0,107800.0,0.41560576]
[1751299898428,1.02966804,107810.0,107800.0,0.61316676]
[1751299898734,0.7130654,107810.0,107800.0,0.61316676]
[1751299899136,1.02966804,107810.0,107800.0,0.61316676]
[1751299899327,0.7130654,107810.0,107800.0,0.61316676]
[1751299899528,1.02966804,107810.0,107800.0,0.62739848]
[1751299902835,0.7130654,107810.0,107800.0,0.62739848]
[1751299903034,0.6564654,107810.0,107800.0,0.90739848]
[1751299903230,0.6564654,107810.0,107800.0,0.96469848]
[1751299903433,0.6564654,107810.0,107800.0,0.95469848]
[1751299904636,0.6564654,107810.0,107800.0,0.60469848]
[1751299904837,0.6564654,107810.0,107800.0,0.68469848]
[1751299905738,0.6564654,107810.0,107800.0,0.62739848]
[1751299906035,0.7135654,107810.0,107800.0,0.62739848]
[1751299906236,1.03016804,107810.0,107800.0,0.62739848]
[1751299909541,1.3772254,107810.0,107800.0,1.22400112]
[1751299909742,1.3772254,107810.0,107800.0,0.96079848]
[1751299909946,1.3773054,107810.0,107800.0,0.96079848]
[1751299910239,1.3215054,107810.0,107800.0,1.01329848]
[1751299910435,0.6909821,107820.0,107810.0,0.1854654]
[1751299910644,0.6909821,107820.0,107810.0,0.81206804]
[1751299910645,0.3608,107820.0,107810.0,0.81206804]
[1751299910842,0.5462482,107820.0,107810.0,0.93690841]
[1751299911244,0.3608,107820.0,107810.0,0.93690841]
[1751299911542,0.5462482,107820.0,107810.0,0.95116117]
[1751299912045,1.2671682,107820.0,107810.0,0.95116117]
[1751299914145,1.2671682,107820.0,107810.0,0.63455853]
[1751299914343,1.2671682,107820.0,107810.0,0.95116117]
[1751299914847,0.6861682,107820.0,107810.0,0.63455853]
[1751299915647,0.6861682,107820.0,107810.0,0.32455853]
[1751299916048,0.6861682,107820.0,107810.0,0.64455853]
[1751299916448,0.5462482,107820.0,107810.0,0.64455853]
[1751299916746,1.08096,107820.0,107810.0,0.64455853]
[1751299921147,0.3608,107820.0,107810.0,0.64455853]
[1751299921450,1.08016,107820.0,107810.0,0.96165763]
[1751299921945,1.08016,107820.0,107810.0,0.64505499]
[1751299922751,0.3608,107820.0,107810.0,0.64505499]
[1751299922952,1.08008,107820.0,107810.0,0.64505499]
[1751299923747,0.3608,107820.0,107810.0,0.64505499]
[1751299923953,1.08008,107820.0,107810.0,0.64505499]